fUSD/lending_fUSD_20240331
["ID","MTS","AMOUNT","RATE_DAILY","PERIOD"]
[321066271,1711857038376,-500.0,0.00041532,4]
[321066272,1711857038386,-500.0,0.00041532,4]
[321066273,1711857038395,-500.0,0.00041532,4]
[321066274,1711857038405,-500.0,0.00041532,4]
[321066275,1711857038414,-500.0,0.00041532,4]
[321066276,1711857038423,-1533.27,0.00041532,4]
[321066277,1711857038433,-500.0,0.00041532,4]
[321066278,1711857038442,-399.92481292,0.00041532,4]
[321066279,1711857038451,-500.0,0.00041532,4]
[321066280,1711857038460,-500.0,0.00041532,4]
[321066281,1711857038469,-500.0,0.00041532,4]
[321066282,1711857038478,-234.28508787,0.00041532,4]
[321066283,1711857038491,-265.71491213,0.00041532,4]
[321066284,1711857038501,-500.0,0.00041532,4]
[321066285,1711857038510,-549.22934,0.00041532,4]
[321066286,1711857038520,-194.69932034,0.00041532,4]
[321066287,1711857038529,-500.0,0.00041532,4]
[321066288,1711857038539,-500.0,0.00041532,4]
[321066289,1711857038551,-500.0,0.00041532,4]
[321066290,1711857038561,-500.0,0.00041532,4]
[321066291,1711857038570,-500.0,0.00041532,4]
[321066292,1711857038579,-980.39,0.00041532,4]
[321066293,1711857038589,-150.0,0.00041532,4]
[321066294,1711857038598,-500.0,0.00041532,4]
[321066295,1711857038607,-500.0,0.00041532,4]
[321066296,1711857038617,-222.70525603,0.00041532,4]
[321066297,1711857038628,-500.0,0.00041532,4]
[321066298,1711857038638,-500.0,0.00041532,4]
[321066299,1711857038648,-500.0,0.00041532,4]
[321066300,1711857038657,-500.0,0.00041532,4]
[321066301,1711857038667,-500.0,0.00041532,4]
[321066302,1711857038676,-178.89111271,0.00041532,4]
[321066303,1711857038685,-500.0,0.00041532,4]
[321066304,1711857038694,-500.0,0.00041532,4]
[321066305,1711857038704,-500.0,0.00041532,4]
[321066306,1711857038712,-1890.56,0.00041532,4]
[321066307,1711857038721,-470.12878764,0.00041532,4]
[321066308,1711857038730,-500.0,0.00041532,4]
[321066309,1711857038739,-500.0,0.00041532,4]
[321066310,1711857038748,-545.35608309,0.00041532,4]
[321066311,1711857038758,-524.86086706,0.00041532,4]
[321066312,1711857038768,-500.0,0.00041532,4]
[321066313,1711857038777,-500.0,0.00041532,4]
[321066314,1711857038786,-500.0,0.00041532,4]
[321066315,1711857038795,-500.0,0.00041532,4]
[321066316,1711857038805,-567.84897583,0.00041532,4]
[321066317,1711857038814,-500.0,0.00041532,4]
[321066318,1711857038824,-699.51,0.00041532,4]
[321066319,1711857038833,-500.0,0.00041532,4]
[321066320,1711857038842,-500.0,0.00041532,4]
[321066321,1711857038852,-500.0,0.00041532,4]
[321066322,1711857038861,-1136.58,0.00041532,4]
[321066323,1711857038870,-840.52,0.00041532,4]
[321066324,1711857038879,-500.0,0.00041532,4]
[321066325,1711857038889,-3317.49,0.00041532,4]
[321066326,1711857038898,-1466.89,0.00041532,4]
[321066327,1711857038907,-791.87,0.00041532,4]
[321066328,1711857038917,-9984.36,0.00041532,4]
[321066329,1711857038926,-1266.54,0.00041532,4]
[321066330,1711857038935,-2382.92,0.00041532,4]
[321066331,1711857038945,-915.13,0.00041532,4]
[321066332,1711857038954,-500.0,0.00041532,4]
[321066333,1711857038963,-500.0,0.00041532,4]
[321066334,1711857038972,-7159.31,0.00041532,4]
[321066335,1711857038981,-500.0,0.00041532,4]
[321066336,1711857038991,-500.0,0.00041532,4]
[321066337,1711857039000,-1454.16,0.00041532,4]
[321066338,1711857039010,-1215.75,0.00041532,4]
[321066339,1711857039024,-500.0,0.00041532,4]
[321066340,1711857039033,-1845.96,0.00041532,4]
[321066341,1711857039044,-561.37,0.00041532,4]
[321066342,1711857039054,-515.55619745,0.00041532,4]
[321066343,1711857039064,-2108.71,0.00041532,4]
[321066344,1711857039075,-500.0,0.00041532,4]
[321066345,1711857039086,-500.0,0.00041532,4]
[321066346,1711857039097,-469.60125925,0.00041532,4]
[321066347,1711857039107,-1009.87,0.00041532,4]
[321066348,1711857039118,-500.0,0.00041532,4]
[321066349,1711857039128,-500.0,0.00041532,4]
[321066350,1711857039138,-500.0,0.00041532,4]
[321066351,1711857039148,-500.0,0.00041532,4]
[321066352,1711857039158,-500.0,0.00041532,4]
[321066353,1711857039167,-500.0,0.00041532,4]
[321066354,1711857039177,-2618.35,0.00041532,4]
[321066355,1711857039187,-1045.14,0.00041532,4]
[321066356,1711857039197,-1610.1,0.00041532,4]
[321066357,1711857039209,-500.0,0.00041532,4]
[321066358,1711857039218,-500.0,0.00041532,4]
[321066359,1711857039228,-1120.92,0.00041532,4]
[321066360,1711857039238,-500.0,0.00041532,4]
[321066361,1711857039248,-663.81,0.00041532,4]
[321066362,1711857039258,-500.0,0.00041532,4]
[321066363,1711857039269,-500.0,0.00041532,4]
[321066364,1711857039279,-500.0,0.00041532,4]
[321066365,1711857039288,-590.13,0.00041532,2]
[321066366,1711857039298,-728.75,0.00041532,4]
[321066367,1711857039308,-2109.03,0.00041532,4]
[321066368,1711857039317,-500.0,0.00041532,4]
[321066369,1711857039327,-348.64325459,0.00041532,4]
[321066370,1711857039336,-500.0,0.00041532,4]
[321066371,1711857039346,-501.98,0.00041532,4]
[321066372,1711857039355,-716.86,0.00041532,4]
[321066373,1711857039365,-513.85888322,0.00041532,4]
[321066374,1711857039375,-754.79,0.00041532,4]
[321066375,1711857039384,-500.0,0.00041532,4]
[321066376,1711857039394,-905.56,0.00041532,4]
[321066377,1711857039404,-225.03219364,0.00041532,4]
[321066378,1711857039413,-500.0,0.00041532,4]
[321066379,1711857039422,-500.0,0.00041532,4]
[321066380,1711857039432,-921.03,0.00041532,4]
[321066381,1711857039441,-500.0,0.00041532,4]
[321066382,1711857039450,-523.84,0.00041532,4]
[321066383,1711857039460,-500.0,0.00041532,4]
[321066384,1711857039469,-500.0,0.00041532,4]
[321066385,1711857039479,-900.2,0.00041532,4]
[321066386,1711857039489,-595.8,0.00041532,4]
[321066387,1711857039498,-539.3,0.00041532,4]
[321066388,1711857039507,-976.71,0.00041532,4]
[321066389,1711857039517,-865.16,0.00041532,4]
[321066390,1711857039527,-500.0,0.00041532,4]
[321066391,1711857039536,-500.0,0.00041532,4]
[321066392,1711857039548,-2173.05,0.00041532,4]
[321066393,1711857039559,-584.8,0.00041532,4]
[321066394,1711857039569,-1565.41,0.00041532,4]
[321066395,1711857039579,-500.0,0.00041532,4]
[321066396,1711857039588,-1840.77,0.00041532,4]
[321066397,1711857039598,-545.72488856,0.00041532,4]
[321066398,1711857039608,-734.34,0.00041532,4]
[321066399,1711857039617,-500.0,0.00041532,4]
[321066400,1711857039629,-724.89,0.00041532,4]
[321066401,1711857039639,-608.1,0.00041532,4]
[321066402,1711857039648,-1959.62,0.00041532,4]
[321066403,1711857039658,-559.18,0.00041532,4]
[321066404,1711857039667,-537.88,0.00041532,4]
[321066405,1711857039676,-1913.67,0.00041532,4]
[321066406,1711857039686,-2304.55,0.00041532,4]
[321066408,1711857039695,-500.0,0.00041532,4]
[321066410,1711857039705,-376.04627169,0.00041532,4]
[321066411,1711857039715,-500.0,0.00041532,4]
[321066412,1711857039725,-500.0,0.00041532,4]
[321066413,1711857039735,-1319.06,0.00041532,4]
[321066414,1711857039745,-500.0,0.00041532,4]
[321066415,1711857039754,-500.0,0.00041532,4]
[321066416,1711857039765,-648.81,0.00041532,4]
[321066417,1711857039775,-500.0,0.00041532,4]
[321066418,1711857039784,-500.0,0.00041532,4]
[321066419,1711857039794,-521.52,0.00041532,4]
[321066420,1711857039805,-1313.58,0.00041532,4]
[321066422,1711857039814,-500.0,0.00041532,4]
[321066424,1711857039824,-500.0,0.00041532,4]
[321066425,1711857039834,-3712.59,0.00041532,4]
[321066426,1711857039844,-547.4,0.00041532,4]
[321066427,1711857039853,-1198.74,0.00041532,4]
[321066428,1711857039863,-794.75,0.00041532,4]
[321066429,1711857039872,-956.46,0.00041532,4]
[321066430,1711857039882,-500.0,0.00041532,4]
[321066431,1711857039891,-500.0,0.00041532,4]
[321066433,1711857039901,-503.66,0.00041532,4]
[321066435,1711857039910,-2328.67,0.00041532,4]
[321066436,1711857039920,-500.0,0.00041532,4]
[321066437,1711857039930,-500.0,0.00041532,4]
[321066438,1711857039941,-2568.55,0.00041532,4]
[321066439,1711857039952,-1789.04,0.00041532,4]
[321066440,1711857039963,-500.0,0.00041532,4]
[321066441,1711857039973,-500.0,0.00041532,4]
[321066442,1711857039982,-500.0,0.00041532,4]
[321066443,1711857039992,-621.06,0.00041532,4]
[321066444,1711857040001,-2051.41,0.00041532,4]
[321066445,1711857040011,-500.0,0.00041532,4]
[321066446,1711857040021,-1616.26,0.00041532,4]
[321066447,1711857040031,-500.0,0.00041532,4]
[321066448,1711857040040,-1651.06,0.00041532,4]
[321066449,1711857040050,-500.0,0.00041532,4]
[321066450,1711857040060,-7519.3,0.00041532,4]
[321066451,1711857040069,-500.0,0.00041532,4]
[321066452,1711857040079,-1368.78,0.00041532,4]
[321066453,1711857040089,-500.0,0.00041532,4]
[321066454,1711857040099,-548.29,0.00041532,4]
[321066455,1711857040109,-3224.97,0.00041532,4]
[321066456,1711857040119,-506.5,0.00041532,4]
[321066457,1711857040129,-500.0,0.00041532,4]
[321066458,1711857040139,-2314.76,0.00041532,4]
[321066459,1711857040148,-2745.97,0.00041532,4]
[321066460,1711857040158,-500.0,0.00041532,4]
[321066461,1711857040168,-500.0,0.00041532,4]
[321066462,1711857040177,-500.0,0.00041532,4]
[321066463,1711857040187,-1926.78,0.00041532,4]
[321066464,1711857040196,-15650.9069,0.00041533,2]
[321066465,1711857040206,-360030.8771,0.00041533,2]
[321066466,1711857040215,-426.736,0.00041533,2]
[321066467,1711857040225,-1033.4074,0.00041533,2]
[321066468,1711857040235,-1800.0,0.000416,15]
[321066469,1711857040244,-180.5565254,0.00041623,2]
[321066470,1711857040254,-150.8,0.00041623,2]
[321066471,1711857040264,-150.8,0.00041623,2]
[321066472,1711857040274,-150.8,0.00041623,2]
[321066473,1711857040283,-150.8,0.00041623,2]
[321066474,1711857040293,-150.8,0.00041623,2]
[321066475,1711857040303,-150.8,0.00041623,2]
[321066476,1711857040313,-478.18232857,0.0004163,2]
[321066477,1711857040323,-1000.0,0.00041633,2]
[321066479,1711857040333,-500.0,0.00041633,2]
[321066481,1711857040342,-493.3056,0.00041633,2]
[321066483,1711857040351,-245000.0,0.00041633,2]
[321066485,1711857040361,-24398.5962,0.00041633,2]
[321066487,1711857040371,-3468.9113,0.00041633,2]
[321066490,1711857040380,-159.59,0.00041641,2]
[321066492,1711857040390,-500.0,0.00041694,30]
[321066494,1711857040399,-500.0,0.00041694,30]
[321066496,1711857040409,-2300.0,0.000417,15]
[321066498,1711857040419,-150.8,0.00041723,2]
[321066500,1711857040428,-400.0,0.00041732,2]
[321066502,1711857040438,-540.84,0.00041732,4]
[321066504,1711857040447,-500.0,0.00041732,4]
[321066506,1711857040457,-1693.73653818,0.00041732,14]
[321066508,1711857040467,-500.0,0.00041732,4]
[321066510,1711857040477,-500.0,0.00041732,4]
[321066512,1711857040486,-701.39,0.00041732,4]
[321066515,1711857040497,-4495.32,0.00041732,4]
[321066517,1711857040507,-500.0,0.00041732,4]
[321066519,1711857040517,-408.50772239,0.00041733,4]
[321066521,1711857040527,-238.50874668,0.00041733,4]
[321066523,1711857040537,-500.0,0.00041733,4]
[321066525,1711857040552,-500.0,0.00041733,4]
[321066526,1711857040561,-500.0,0.00041733,4]
[321066527,1711857040570,-500.0,0.00041733,4]
[321066528,1711857040580,-386.62952951,0.00041733,4]
[321066529,1711857040590,-500.0,0.00041733,4]
[321066530,1711857040599,-500.0,0.00041733,4]
[321066531,1711857040609,-500.0,0.00041733,4]
[321066532,1711857040619,-500.0,0.00041733,4]
[321066533,1711857040629,-500.0,0.00041733,4]
[321066534,1711857040639,-500.0,0.00041733,4]
[321066536,1711857040648,-501.93077049,0.00041733,4]
[321066538,1711857040658,-500.0,0.00041733,4]
[321066540,1711857040669,-500.0,0.00041733,4]
[321066542,1711857040679,-694.34,0.00041733,4]
[321066544,1711857040689,-500.0,0.00041733,4]
[321066546,1711857040698,-500.0,0.00041733,4]
[321066548,1711857040708,-500.0,0.00041733,4]
[321066550,1711857040717,-500.0,0.00041733,4]
[321066552,1711857040727,-260.66089685,0.00041733,4]
[321066554,1711857040737,-500.0,0.00041733,4]
[321066556,1711857040747,-500.0,0.00041733,4]
[321066558,1711857040756,-500.0,0.00041733,4]
[321066560,1711857040766,-500.0,0.00041733,4]
[321066563,1711857040776,-500.0,0.00041733,4]
[321066565,1711857040786,-973.85,0.00041733,2]
[321066567,1711857040797,-185.21174423,0.00041734,2]
[321066569,1711857040807,-156.66668872,0.00041735,30]
[321066571,1711857040816,-155.49512668,0.00041743,13]
[321066573,1711857040827,-150.8,0.00041796,2]
[321066575,1711857040836,-150.8,0.00041796,2]
[321066577,1711857040846,-150.8,0.00041796,2]
[321066579,1711857040855,-1000.0,0.000418,2]
[321066581,1711857040865,-1697.32177087,0.000418,16]
[321066583,1711857040875,-400.0,0.000418,15]
[321066585,1711857040884,-500.0,0.00041806,4]
[321066587,1711857040894,-500.0,0.00041806,4]
[321066589,1711857040904,-500.0,0.00041806,4]
[321066591,1711857040914,-500.0,0.00041806,4]
[321066594,1711857040923,-500.0,0.00041806,4]
[321066596,1711857040933,-1533.27,0.00041806,4]
[321066598,1711857040942,-343.77123105,0.00041806,4]
[321066600,1711857040952,-500.0,0.00041806,4]
[321066602,1711857040962,-500.0,0.00041806,4]
[321066604,1711857040971,-500.0,0.00041806,4]
[321066606,1711857040981,-500.0,0.00041806,4]
[321066608,1711857040990,-500.0,0.00041806,4]
[321066610,1711857041000,-500.0,0.00041806,4]
[321066612,1711857041010,-500.0,0.00041806,4]
[321066614,1711857041021,-500.0,0.00041806,4]
[321066616,1711857041031,-500.0,0.00041806,4]
[321066618,1711857041041,-500.0,0.00041806,4]
[321066620,1711857041051,-980.39,0.00041806,4]
[321066622,1711857041060,-150.0,0.00041806,4]
[321066624,1711857041069,-500.0,0.00041806,4]
[321066626,1711857041079,-500.0,0.00041806,4]
[321066628,1711857041088,-500.0,0.00041806,4]
[321066631,1711857041098,-500.0,0.00041806,4]
[321066633,1711857041107,-500.0,0.00041806,4]
[321066635,1711857041117,-500.0,0.00041806,4]
[321066637,1711857041127,-500.0,0.00041806,4]
[321066639,1711857041137,-500.0,0.00041806,4]
[321066641,1711857041146,-500.0,0.00041806,4]
[321066643,1711857041156,-500.0,0.00041806,4]
[321066645,1711857041165,-1890.56,0.00041806,4]
[321066647,1711857041175,-500.0,0.00041806,4]
[321066649,1711857041185,-500.0,0.00041806,4]
[321066651,1711857041195,-500.0,0.00041806,4]
[321066653,1711857041205,-167.23578425,0.00041806,4]
[321066656,1711857041215,-500.0,0.00041806,4]
[321066658,1711857041225,-500.0,0.00041806,4]
[321066660,1711857041235,-699.51,0.00041806,4]
[321066662,1711857041244,-500.0,0.00041806,4]
[321066664,1711857041253,-500.0,0.00041806,4]
[321066666,1711857041265,-500.0,0.00041806,4]
[321066668,1711857041275,-1136.58,0.00041806,4]
[321066670,1711857041284,-840.52,0.00041806,4]
[321066672,1711857041294,-500.0,0.00041806,4]
[321066674,1711857041304,-3317.49,0.00041806,4]
[321066676,1711857041314,-1466.89,0.00041806,4]
[321066678,1711857041323,-791.87,0.00041806,4]
[321066680,1711857041333,-9984.36,0.00041806,4]
[321066682,1711857041343,-1266.54,0.00041806,4]
[321066685,1711857041354,-2382.92,0.00041806,4]
[321066708,1711857041364,-915.13,0.00041806,4]
[321066711,1711857041578,-500.0,0.00041806,4]
[321066713,1711857041588,-500.0,0.00041806,4]
[321066715,1711857041598,-7159.31,0.00041806,4]
[321066717,1711857041607,-500.0,0.00041806,4]
[321066719,1711857041616,-500.0,0.00041806,4]
[321066721,1711857041629,-1454.16,0.00041806,4]
[321066723,1711857041639,-1215.75,0.00041806,4]
[321066725,1711857041648,-158.64750351,0.00041806,4]
[321066727,1711857041658,-1845.96,0.00041806,4]
[321066729,1711857041667,-561.37,0.00041806,4]
[321066731,1711857041676,-2108.71,0.00041806,4]
[321066733,1711857041686,-500.0,0.00041806,4]
[321066735,1711857041695,-500.0,0.00041806,4]
[321066737,1711857041704,-1009.87,0.00041806,4]
[321066739,1711857041714,-500.0,0.00041806,4]
[321066741,1711857041723,-500.0,0.00041806,4]
[321066743,1711857041733,-500.0,0.00041806,4]
[321066745,1711857041742,-500.0,0.00041806,4]
[321066747,1711857041752,-500.0,0.00041806,4]
[321066749,1711857041761,-500.0,0.00041806,4]
[321066752,1711857041771,-2618.35,0.00041806,4]
[321066754,1711857041781,-1045.14,0.00041806,4]
[321066756,1711857041791,-1610.1,0.00041806,4]
[321066758,1711857041800,-500.0,0.00041806,4]
[321066760,1711857041809,-500.0,0.00041806,4]
[321066762,1711857041819,-1120.92,0.00041806,4]
[321066764,1711857041828,-500.0,0.00041806,4]
[321066766,1711857041838,-663.81,0.00041806,4]
[321066768,1711857041847,-500.0,0.00041806,4]
[321066770,1711857041856,-500.0,0.00041806,4]
[321066772,1711857041866,-500.0,0.00041806,4]
[321066774,1711857041876,-590.13,0.00041806,2]
[321066776,1711857041885,-728.75,0.00041806,4]
[321066778,1711857041895,-2109.03,0.00041806,4]
[321066780,1711857041904,-500.0,0.00041806,4]
[321066782,1711857041913,-500.0,0.00041806,4]
[321066784,1711857041923,-501.98,0.00041806,4]
[321066786,1711857041932,-716.86,0.00041806,4]
[321066788,1711857041942,-754.79,0.00041806,4]
[321066790,1711857041952,-500.0,0.00041806,4]
[321066792,1711857041961,-905.56,0.00041806,4]
[321066794,1711857041971,-500.0,0.00041806,4]
[321066796,1711857041980,-500.0,0.00041806,4]
[321066798,1711857041989,-921.03,0.00041806,4]
[321066800,1711857041999,-500.0,0.00041806,4]
[321066802,1711857042008,-523.84,0.00041806,4]
[321066804,1711857042017,-500.0,0.00041806,4]
[321066806,1711857042027,-500.0,0.00041806,4]
[321066808,1711857042036,-900.2,0.00041806,4]
[321066810,1711857042045,-595.8,0.00041806,4]
[321066812,1711857042056,-539.3,0.00041806,4]
[321066814,1711857042065,-976.71,0.00041806,4]
[321066816,1711857042075,-865.16,0.00041806,4]
[321066818,1711857042085,-500.0,0.00041806,4]
[321066820,1711857042095,-500.0,0.00041806,4]
[321066822,1711857042105,-2173.05,0.00041806,4]
[321066824,1711857042114,-584.8,0.00041806,4]
[321066826,1711857042123,-1565.41,0.00041806,4]
[321066828,1711857042133,-500.0,0.00041806,4]
[321066830,1711857042142,-1840.77,0.00041806,4]
[321066832,1711857042151,-734.34,0.00041806,4]
[321066834,1711857042161,-500.0,0.00041806,4]
[321066836,1711857042170,-724.89,0.00041806,4]
[321066838,1711857042180,-608.1,0.00041806,4]
[321066840,1711857042189,-1959.62,0.00041806,4]
[321066842,1711857042199,-559.18,0.00041806,4]
[321066844,1711857042209,-537.88,0.00041806,4]
[321066847,1711857042219,-1913.67,0.00041806,4]
[321066849,1711857042230,-2304.55,0.00041806,4]
[321066851,1711857042239,-500.0,0.00041806,4]
[321066853,1711857042249,-500.0,0.00041806,4]
[321066855,1711857042259,-500.0,0.00041806,4]
[321066857,1711857042270,-1319.06,0.00041806,4]
[321066859,1711857042279,-500.0,0.00041806,4]
[321066861,1711857042288,-500.0,0.00041806,4]
[321066863,1711857042298,-648.81,0.00041806,4]
[321066865,1711857042308,-500.0,0.00041806,4]
[321066867,1711857042318,-500.0,0.00041806,4]
[321066869,1711857042329,-521.52,0.00041806,4]
[321066871,1711857042338,-1313.58,0.00041806,4]
[321066873,1711857042347,-624.06442103,0.00041806,4]
[321066875,1711857042356,-500.0,0.00041806,4]
[321066877,1711857042366,-3712.59,0.00041806,4]
[321066878,1711857042377,-547.4,0.00041806,4]
[321066881,1711857042387,-1198.74,0.00041806,4]
[321066883,1711857042396,-794.75,0.00041806,4]
[321066885,1711857042406,-500.0,0.00041806,4]
[321066887,1711857042415,-956.46,0.00041806,4]
[321066889,1711857042424,-500.0,0.00041806,4]
[321066891,1711857042434,-503.66,0.00041806,4]
[321066893,1711857042443,-2328.67,0.00041806,4]
[321066895,1711857042452,-500.0,0.00041806,4]
[321066897,1711857042462,-500.0,0.00041806,4]
[321066899,1711857042471,-2568.55,0.00041806,4]
[321066901,1711857042480,-1789.04,0.00041806,4]
[321066903,1711857042489,-500.0,0.00041806,4]
[321066905,1711857042498,-500.0,0.00041806,4]
[321066907,1711857042507,-500.0,0.00041806,4]
[321066909,1711857042516,-621.06,0.00041806,4]
[321066911,1711857042527,-2051.41,0.00041806,4]
[321066913,1711857042536,-500.0,0.00041806,4]
[321066915,1711857042548,-1616.26,0.00041806,4]
[321066917,1711857042558,-1651.06,0.00041806,4]
[321066919,1711857042567,-500.0,0.00041806,4]
[321066921,1711857042576,-500.0,0.00041806,4]
[321066923,1711857042586,-7519.3,0.00041806,4]
[321066925,1711857042596,-500.0,0.00041806,4]
[321066927,1711857042605,-1368.78,0.00041806,4]
[321066929,1711857042615,-422.43762574,0.00041806,4]
[321066931,1711857042629,-548.29,0.00041806,4]
[321066933,1711857042639,-3224.97,0.00041806,4]
[321066936,1711857042648,-506.5,0.00041806,4]
[321066939,1711857042658,-500.0,0.00041806,4]
[321066942,1711857042667,-2314.76,0.00041806,4]
[321066944,1711857042676,-2745.97,0.00041806,4]
[321066946,1711857042685,-500.0,0.00041806,4]
[321066948,1711857042694,-500.0,0.00041806,4]
[321066950,1711857042703,-500.0,0.00041806,4]
[321066952,1711857042712,-1926.78,0.00041806,4]
[321066954,1711857042722,-2000.0,0.00041823,5]
[321066956,1711857042731,-150.8,0.0004183,2]
[321066957,1711857042740,-150.8,0.0004183,2]
[321066959,1711857042750,-197.16431428,0.00041838,2]
[321066961,1711857042758,-4807.36555317,0.00041838,2]
[321066963,1711857042769,-181.5555964,0.00041838,2]
[321066965,1711857042778,-467.29258868,0.00041838,2]
[321066967,1711857042788,-915.41374746,0.00041838,2]
[321066968,1711857042797,-158.0,0.0004184,7]
[321066969,1711857042806,-736.4449,0.0004184,2]
[321066970,1711857042815,-5378.8781,0.0004184,2]
[321066971,1711857042824,-100000.0,0.0004184,2]
[321066972,1711857042833,-159.59,0.00041849,2]
[321066973,1711857042842,-150.8,0.0004189,2]
[321066974,1711857042851,-150.8,0.0004189,2]
[321066975,1711857042862,-150.8,0.0004189,2]
[321066976,1711857042872,-150.8,0.0004189,2]
[321066977,1711857042881,-150.8,0.0004189,2]
[321066978,1711857042890,-150.8,0.0004189,2]
[321066979,1711857042900,-153.21408573,0.000419,7]
[321066980,1711857042912,-494.0,0.000419,28]
[321066981,1711857042922,-111498.49065948,0.000419,7]
[321066982,1711857042960,-3786.3304588,0.000419,7]
[321066983,1711857042972,-3035.81285625,0.000419,7]
[321066984,1711857042985,-1998.1574,0.000419,7]
[321066985,1711857043000,-1029.27,0.000419,7]
[321066989,1711857043270,-500.0,0.00041532,4]
[321066990,1711857043280,-202.00955066,0.00041806,4]
[321066991,1711857043296,-297.99044934,0.00041806,4]
[321066992,1711857043305,-2314.893918,0.000419,7]
[321066993,1711857043333,-1974.77509319,0.000419,7]
[321066999,1711857043880,-500.0,0.00041532,4]
[321067001,1711857043890,-500.0,0.00041806,4]
[321067002,1711857043900,-119.50450752,0.000419,7]
[321067004,1711857043916,-628.18,0.000419,7]
[321067005,1711857043927,-575.13749975,0.000419,7]
[321067025,1711857045950,-500.0,0.00041532,4]
[321067027,1711857045960,-500.0,0.00041806,4]
[321067029,1711857045969,-155.79324561,0.00041899,4]
[321067031,1711857045978,-223.16142754,0.000419,7]
[321067041,1711857046066,-627.44,0.000419,7]
[321067043,1711857046078,-317.46885953,0.000419,7]
[321067045,1711857046090,-475.20971141,0.000419,7]
[321067047,1711857046128,-6671.84275276,0.000419,7]
[321067059,1711857046227,-1146.67791308,0.000419,7]
[321067066,1711857046284,-831.83615779,0.000419,7]
[321067068,1711857046296,-1531.66,0.000419,7]
[321067070,1711857046307,-1961.05,0.000419,7]
[321067073,1711857046318,-29401.7310997,0.000419,7]
[321067075,1711857046329,-897.0126949,0.000419,7]
[321067104,1711858232234,-259.1,0.00035399,4]
[321067124,1711858238243,-57.52571713,0.00035399,4]
[321067125,1711858238253,-373.25788922,0.00035399,4]
[321067126,1711858238261,-377.96670142,0.000354,3]
[321067127,1711858238273,-39.03329858,0.000354,3]
[321067128,1711858238282,-286.06,0.00038557,2]
[321067129,1711858238291,-165.76783,0.00039463,2]
[321067130,1711858238300,-164.89917962,0.00039637,2]
[321067131,1711858238309,-85.51693135,0.00039837,4]
[321067132,1711858238321,-420.8888349,0.00039837,4]
[321067133,1711858238332,-298.52743707,0.00039837,4]
[321067134,1711858238344,-362.69102512,0.00039837,4]
[321067145,1711858240532,-300.41284419,0.00039837,4]
[321067163,1711858243427,-1425.41943008,0.00039837,4]
[321067164,1711858243437,-1427.7074258,0.00039839,4]
[321067165,1711858243447,-321.09412419,0.0003984,4]
[321067166,1711858243457,-955.42240969,0.00039841,4]
[321067167,1711858243467,-360.0,0.00040269,2]
[321067168,1711858243476,-233.91,0.00040283,2]
[321067169,1711858243486,-158.12,0.00040292,15]
[321067170,1711858243496,-173.6425588,0.00040495,2]
[321067226,1711858246411,-466.3574412,0.00040495,2]
[321067227,1711858246420,-726.91,0.00040525,2]
[321067228,1711858246430,-159.59,0.00040719,2]